fUSD/lending_fUSD_20250809
["ID","MTS","AMOUNT","RATE_DAILY","PERIOD"]
[378053121,1754704240459,-500.0,0.00026169,2]
[378053123,1754704240470,-500.0,0.00026169,2]
[378053125,1754704240480,-500.0,0.00026169,2]
[378053127,1754704240489,-500.0,0.00026169,2]
[378053129,1754704240499,-500.0,0.00026169,2]
[378053131,1754704240509,-500.0,0.00026169,2]
[378053133,1754704240518,-500.0,0.00026169,2]
[378053135,1754704240528,-500.0,0.00026169,2]
[378053137,1754704240537,-500.0,0.00026169,2]
[378053139,1754704240547,-500.0,0.00026169,2]
[378053141,1754704240556,-500.0,0.00026169,2]
[378053143,1754704240565,-500.0,0.00026169,2]
[378053145,1754704240575,-500.0,0.00026169,2]
[378053147,1754704240584,-500.0,0.00026169,2]
[378053149,1754704240594,-264.20403014,0.00026169,2]
[378053151,1754704240603,-500.0,0.00026169,2]
[378053153,1754704240613,-500.0,0.00026169,2]
[378053155,1754704240622,-500.0,0.00026169,2]
[378053157,1754704240632,-500.0,0.00026169,2]
[378053159,1754704240641,-500.0,0.00026169,2]
[378053161,1754704240651,-500.0,0.00026169,2]
[378053162,1754704240660,-500.0,0.00026169,2]
[378053164,1754704240669,-500.0,0.00026169,2]
[378053166,1754704240680,-500.0,0.00026169,2]
[378053168,1754704240690,-150.0,0.00026169,2]
[378053170,1754704240699,-505.96450732,0.00026169,2]
[378053172,1754704240708,-311.65000781,0.00026169,2]
[378053175,1754704240719,-192.88177179,0.00026169,2]
[378053177,1754704240729,-533.85,0.00026169,2]
[378053179,1754704240739,-201.61288824,0.00026169,2]
[378053180,1754704240749,-182.03331943,0.00026169,2]
[378053182,1754704240759,-160.88774067,0.00026169,2]
[378053184,1754704240769,-325.86342038,0.00026169,2]
[378053186,1754704240779,-400.0,0.00026169,2]
[378053188,1754704240789,-206.72574722,0.00026169,2]
[378053190,1754704240799,-415.25573619,0.00026169,2]
[378053192,1754704240809,-182.26114604,0.00026169,2]
[378053194,1754704240818,-247.44094552,0.00026169,2]
[378053196,1754704240827,-228.56979961,0.00026169,2]
[378053199,1754704240838,-400.0,0.00026169,2]
[378053200,1754704240851,-500.0,0.00026169,2]
[378053202,1754704240862,-329.06366978,0.00026169,2]
[378053204,1754704240871,-601.1,0.00026169,2]
[378053206,1754704240880,-164.57329424,0.00026169,2]
[378053208,1754704240891,-287.80533868,0.00026169,2]
[378053210,1754704240900,-171.85108202,0.0002617,2]
[378053212,1754704240910,-151.0,0.0002617,7]
[378053214,1754704240919,-842.44706758,0.0002617,3]
[378053216,1754704240931,-533.85,0.0002617,2]
[378053218,1754704240941,-500.0,0.0002617,2]
[378053220,1754704240950,-2036.23065967,0.0002617,3]
[378053223,1754704240965,-623.11289995,0.0002617,3]
[378053237,1754704241094,-3348.16467372,0.0002617,3]
[378053239,1754704241108,-330.04542479,0.00026169,2]
[378053241,1754704241117,-169.95458299,0.0002617,3]
[378053243,1754704241129,-512.27802841,0.0002617,3]
[378053413,1754704242792,-12753.85615856,0.0002617,3]
[378053425,1754704242899,-4033.02899999,0.0002617,3]
[378053431,1754704242952,-600.0,0.0002617,3]
[378053450,1754704243111,-353.92,0.0002617,3]
[378053457,1754704243165,-501.46122982,0.0002617,3]
[378053640,1754704245033,152.39,0.00013699,2]
[378053731,1754704245887,-152.39,0.00023973,2]
[378053733,1754704245897,-6139.67994797,0.0002617,3]
[378053739,1754704245942,-534.35,0.0002617,3]
[378053745,1754704245995,-1481.06502726,0.0002617,3]
[378053769,1754704246206,-499.59826789,0.0002617,3]
[378053788,1754704246367,-686.72071317,0.0002617,3]
[378054816,1754705257362,158.41,0.00013699,2]
[378054821,1754705432043,-151.0,0.00018662,2]
[378054822,1754705432053,-151.0,0.00018687,2]
[378054823,1754705432063,-500.0,0.0001869,2]
[378054824,1754705432072,-250.0,0.0001895,2]
[378054825,1754705432082,-254.43710382,0.00019325,2]
[378054826,1754705432091,-151.0,0.00019341,2]
[378054827,1754705432104,-313.54,0.00019636,2]
[378054828,1754705432113,-158.00693307,0.00019889,2]
[378054829,1754705432124,-300.0,0.00020556,2]
[378054830,1754705432133,-500.0,0.00020556,2]
[378054831,1754705432143,-250.0,0.00020589,2]
[378054832,1754705432153,-250.0,0.00020629,2]
[378054833,1754705432163,-178.32,0.0002086,2]
[378054834,1754705432173,-184.88,0.000209,2]
[378054835,1754705432182,-313.54,0.00021366,2]
[378054836,1754705432191,-152.0,0.00021852,3]
[378054837,1754705432201,-600.0,0.00022096,2]
[378054838,1754705432210,-342.27596311,0.00022096,2]
[378054839,1754705432226,-257.72403689,0.00022096,2]
[378054840,1754705432235,-152.0,0.00022212,4]
[378054841,1754705432245,-300.0,0.00022408,2]
[378054842,1754705432255,-1200.0,0.00022408,2]
[378054843,1754705432264,-636.664,0.00022409,3]
[378054844,1754705432274,-705.783,0.00022409,3]
[378054845,1754705432283,-152.0,0.00022571,5]
[378054846,1754705432292,-152.0,0.00022931,6]
[378054847,1754705432302,-313.54,0.00023097,2]
[378054848,1754705432311,-500.0,0.00023233,2]
[378054849,1754705432321,-152.0,0.0002329,7]
[378054850,1754705432330,-864.49,0.00023569,2]
[378054851,1754705432340,-170.0,0.00023632,7]
[378054852,1754705432349,-152.0,0.0002365,8]
[378054853,1754705432359,-1193.0,0.0002365,2]
[378054854,1754705432368,-23900.0,0.00023659,2]
[378054855,1754705432378,-513.0,0.00023847,2]
[378054856,1754705432387,-152.0,0.00024009,9]
[378054857,1754705432396,-150.0,0.00024263,4]
[378054859,1754705432405,-150.0,0.00024263,4]
[378054861,1754705432414,-150.0,0.00024263,4]
[378054863,1754705432424,-150.0,0.00024263,4]
[378054865,1754705432435,-150.0,0.00024263,4]
[378054867,1754705432444,-150.0,0.00024263,4]
[378054869,1754705432454,-150.83402555,0.00024263,4]
[378054871,1754705432466,-150.0,0.00024263,4]
[378054873,1754705432476,-150.0,0.00024263,4]
[378054875,1754705432486,-150.0,0.00024263,4]
[378054877,1754705432495,-150.55075765,0.00024263,4]
[378054878,1754705432505,-150.0,0.00024263,4]
[378054880,1754705432514,-254.83664419,0.00024263,4]
[378054882,1754705432524,-675.08,0.00024314,2]
[378054884,1754705432533,-420.0,0.0002434,2]
[378054887,1754705432544,-152.0,0.00024369,10]
[378054888,1754705432554,-150.0,0.00024422,4]
[378054890,1754705432563,-452.86521283,0.0002443,2]
[378054892,1754705432573,-452.86521283,0.00024438,2]
[378054894,1754705432583,-452.86521283,0.0002447,2]
[378054896,1754705432592,-150.0,0.0002447,4]
[378054898,1754705432601,-452.86521283,0.00024482,2]
[378054901,1754705432611,-452.86521283,0.00024485,2]
[378054903,1754705432620,-150.0,0.00024497,2]
[378054904,1754705432630,-200.0,0.00024522,2]
[378054907,1754705432640,-167.34,0.00024535,2]
[378054908,1754705432649,-6340.82,0.0002454,2]
[378054910,1754705432659,-150.0,0.0002458,4]
[378054912,1754705432668,-150.0,0.00024648,4]
[378054914,1754705432677,-150.0,0.00024678,4]
[378054916,1754705432687,-513.0,0.00024685,2]
[378054918,1754705432696,-152.0,0.00024728,11]
[378054920,1754705432705,-150.0,0.00024739,4]
[378054922,1754705432715,-1000.0,0.00024754,2]
[378054924,1754705432724,-151.0,0.00024795,2]
[378054926,1754705432733,-151.0,0.00024795,2]
[378054928,1754705432743,-151.0,0.00024795,2]
[378054930,1754705432753,-151.0,0.00024795,2]
[378054932,1754705432762,-500.0,0.00024795,2]
[378054935,1754705432773,-151.0,0.00024795,2]
[378054936,1754705432782,-151.0,0.00024795,2]
[378054937,1754705432792,-151.0,0.00024795,2]
[378054938,1754705432812,-151.0,0.00024795,2]
[378054939,1754705432828,-151.0,0.00024795,2]
[378054940,1754705432838,-151.0,0.00024795,2]
[378054941,1754705432848,-151.0,0.00024795,2]
[378054942,1754705432858,-151.0,0.00024795,2]
[378054943,1754705432868,-151.0,0.00024795,2]
[378054944,1754705432878,-151.0,0.00024795,2]
[378054945,1754705432887,-500.0,0.00024795,2]
[378054946,1754705432898,-151.0,0.00024795,2]
[378054947,1754705432908,-500.0,0.00024795,2]
[378054948,1754705432922,-151.0,0.00024795,2]
[378054949,1754705432932,-500.0,0.00024795,2]
[378054951,1754705432941,-151.0,0.00024795,2]
[378054952,1754705432951,-500.0,0.00024795,2]
[378054954,1754705432963,-151.0,0.00024795,2]
[378054956,1754705432973,-500.0,0.00024795,2]
[378054958,1754705432984,-151.0,0.00024795,2]
[378054960,1754705432994,-151.0,0.00024795,2]
[378054962,1754705433004,-500.0,0.00024795,2]
[378054964,1754705433014,-151.0,0.00024795,2]
[378054966,1754705433024,-151.0,0.00024795,2]
[378054968,1754705433035,-500.0,0.00024795,2]
[378054970,1754705433046,-151.0,0.00024795,2]
[378054972,1754705433057,-634.28669211,0.00024795,2]
[378054974,1754705433067,-151.0,0.00024795,2]
[378054976,1754705433077,-151.0,0.00024795,2]
[378054978,1754705433088,-151.0,0.00024795,2]
[378054980,1754705433099,-151.0,0.00024795,2]
[378054982,1754705433108,-151.0,0.00024795,2]
[378054984,1754705433119,-198.53969695,0.00024795,2]
[378054986,1754705433129,-600.0,0.00024795,2]
[378054988,1754705433139,-600.0,0.00024795,2]
[378054990,1754705433149,-611.74510283,0.00024795,2]
[378054993,1754705433159,-14282.0,0.0002481,2]
[378054995,1754705433169,-313.54,0.00024827,2]
[378054997,1754705433180,-166.75,0.00024835,2]
[378054999,1754705433190,-501.31311314,0.0002484,2]
[378055001,1754705433200,-346.26205223,0.0002485,2]
[378055004,1754705433218,-153.73794777,0.0002485,2]
[378055006,1754705433228,-618.90156024,0.00024867,2]
[378055008,1754705433238,-560.55317737,0.00024867,2]
[378055010,1754705433248,-250.0,0.0002487,2]
[378055012,1754705433258,-151.0,0.0002487,2]
[378055014,1754705433268,-500.0,0.0002487,2]
[378055016,1754705433278,-239.84119403,0.0002487,2]
[378055017,1754705433287,-250.0,0.0002487,2]
[378055019,1754705433298,-500.0,0.0002487,2]
[378055022,1754705433309,-265.66681579,0.0002487,2]
[378055024,1754705433319,-573.05038154,0.0002487,2]
[378055025,1754705433329,-160.0,0.0002487,2]
[378055027,1754705433339,-300.0,0.0002487,2]
[378055029,1754705433349,-300.0,0.0002487,2]
[378055031,1754705433359,-314.96769366,0.0002487,2]
[378055033,1754705433368,-257.54700064,0.0002487,2]
[378055035,1754705433378,-500.0,0.0002487,2]
[378055037,1754705433388,-500.0,0.0002487,2]
[378055039,1754705433397,-500.0,0.0002487,2]
[378055041,1754705433407,-181.08010149,0.0002487,2]
[378055043,1754705433417,-4662.51281194,0.0002487,2]
[378055045,1754705433427,-500.0,0.0002487,2]
[378055047,1754705433452,-500.0,0.0002487,2]
[378055049,1754705433477,-510.7765241,0.0002487,2]
[378055051,1754705433503,-359.76179104,0.0002487,2]
[378055053,1754705433535,-500.0,0.0002487,2]
[378055055,1754705433566,-500.0,0.0002487,2]
[378055057,1754705433593,-597.3021935,0.0002487,2]
[378055059,1754705433623,-250.0,0.0002487,2]
[378055061,1754705433646,-250.0,0.0002487,2]
[378055063,1754705433656,-250.0,0.0002487,2]
[378055065,1754705433666,-250.0,0.0002487,2]
[378055068,1754705433681,-250.0,0.0002487,2]
[378055069,1754705433690,-250.0,0.0002487,2]
[378055071,1754705433700,-250.0,0.0002487,2]
[378055073,1754705433710,-250.0,0.0002487,2]
[378055075,1754705433720,-250.0,0.0002487,2]
[378055077,1754705433730,-262.42961022,0.0002487,2]
[378055079,1754705433740,-217.31672549,0.0002487,2]
[378055081,1754705433750,-151.0,0.0002487,2]
[378055083,1754705433760,-151.0,0.0002487,2]
[378055085,1754705433769,-151.96310113,0.0002487,2]
[378055087,1754705433780,-151.0,0.0002487,2]
[378055089,1754705433790,-150.0,0.00024885,4]
[378055091,1754705433800,-5918.37674181,0.00024896,2]
[378055094,1754705433814,-4340.56325819,0.00024896,2]
[378055096,1754705433824,-150.0,0.00024897,4]
[378055098,1754705433834,-583.89462899,0.000249,2]
[378055100,1754705433844,-518.364034,0.00024905,2]
[378055102,1754705433854,-158.41,0.00024907,2]
[378055104,1754705433864,-4835.02578598,0.00024925,2]
[378055106,1754705433874,-150.93,0.0002496,2]
[378055108,1754705433884,-5013.92174006,0.0002498,2]
[378055110,1754705433894,-469.0,0.00025,2]
[378055112,1754705433904,-150.0,0.00025033,4]
[378055113,1754705433918,-150.0,0.00025056,4]
[378055115,1754705433928,-152.0,0.00025088,12]
[378055116,1754705433939,-150.0,0.00025093,4]
[378055117,1754705433949,-2581.24,0.00025124,2]
[378055118,1754705433960,-191.96,0.00025155,2]
[378055119,1754705433970,-461.01663289,0.00025156,2]
[378055120,1754705433983,-4538.98336711,0.00025156,2]
[378055121,1754705433994,-150.0,0.00025162,4]
[378055122,1754705434005,-150.0,0.00025162,4]
[378055123,1754705434016,-150.0,0.00025162,4]
[378055124,1754705434026,-158.38,0.00025177,120]
[378055125,1754705434035,-150.0,0.00025215,4]
[378055126,1754705434045,-150.0,0.000253,4]
[378055127,1754705434055,-150.0,0.00025373,4]
[378055128,1754705434065,-151.0,0.00025418,2]
[378055129,1754705434076,-152.40205508,0.00025418,2]
[378055130,1754705434085,-150.0,0.00025418,4]
[378055131,1754705434095,-152.0,0.00025447,13]
[378055132,1754705434105,-150.0,0.00025507,4]
[378055133,1754705434115,-675.08,0.0002553,2]
[378055134,1754705434124,-150.0,0.00025532,4]
[378055135,1754705434133,-300.0,0.000256,9]
[378055136,1754705434142,-150.0,0.00025611,4]
[378055137,1754705434152,-150.0,0.00025611,4]
[378055138,1754705434161,-150.0,0.0002569,4]
[378055139,1754705434171,-600.0,0.000257,9]
[378055140,1754705434181,-150.0,0.00025715,4]
[378055141,1754705434190,-287.16411607,0.000258,9]
[378055301,1754705439904,-200.0,0.00023575,2]
[378055303,1754705439916,-712.83588393,0.000258,9]
[378055305,1754705439925,-150.0,0.00025804,4]
[378055307,1754705439935,-152.0,0.00025807,14]
[378055309,1754705439944,-150.0,0.00025849,4]
[378055311,1754705439954,-1321.61834669,0.00025857,2]
[378055313,1754705439963,-600.0,0.00025868,2]
[378055315,1754705439972,-600.0,0.00025868,2]
[378055317,1754705439982,-167.34,0.00025884,2]
[378055319,1754705440004,-1300.0,0.000259,9]
[378055321,1754705440026,-1356.95957699,0.000259,2]
[378055322,1754705440038,-150.0,0.00025922,4]
[378055324,1754705440048,-152.4566363,0.00025966,2]
[378055326,1754705440057,-6929.5675,0.0002597,2]
[378055328,1754705440068,-230.5169,0.0002597,2]
[378055330,1754705440077,-275.1543,0.0002597,2]
[378055332,1754705440087,-1000.0,0.0002597,2]
[378055334,1754705440096,-200.0,0.00025975,2]
[378055336,1754705440105,-161.0,0.00026,5]
[378055338,1754705440115,-162.29,0.00026,3]
[378055340,1754705440124,-150.0,0.00026007,4]
[378055342,1754705440134,-1000.0,0.00026008,2]
[378055344,1754705440144,-150.0,0.00026015,2]
[378055346,1754705440153,-162.97,0.00026037,2]
[378055348,1754705440163,-150.0,0.0002604,2]
[378055350,1754705440172,-3914.52378475,0.00026041,2]
[378055352,1754705440181,-2500.0,0.0002605,2]
[378055354,1754705440191,-181.44510472,0.00026051,2]
[378055356,1754705440201,-161.59854009,0.00026051,2]
[378055358,1754705440210,-194.40260013,0.00026058,12]
[378055360,1754705440219,-545.192,0.00026058,12]
[378055362,1754705440228,-1000.0,0.0002606,2]
[378055364,1754705440238,-150.0,0.0002606,4]
[378055366,1754705440247,-150.0,0.0002606,4]
[378055368,1754705440256,-150.0,0.0002606,4]
[378055370,1754705440266,-8524.0776,0.00026061,2]
[378055372,1754705440275,-560.00293047,0.00026061,2]
[378055374,1754705440284,-1895.9722,0.00026061,2]
[378055376,1754705440293,-400.0,0.0002607,2]
[378055378,1754705440303,-154.52948912,0.0002607,2]
[378055380,1754705440312,-473.32430526,0.0002607,2]
[378055382,1754705440321,-1195.45,0.0002607,2]
[378055384,1754705440331,-401.46764829,0.0002607,2]
[378055386,1754705440340,-402.70313081,0.0002607,2]
[378055388,1754705440349,-11328.6978937,0.0002607,2]
[378055391,1754705440361,-10000.0,0.0002607,2]
[378055393,1754705440373,-704.90172732,0.0002607,2]
[378055395,1754705440385,-469.44715732,0.0002607,2]
[378055397,1754705440395,-1726.00720309,0.0002607,2]
[378055399,1754705440406,-4119.45280101,0.0002607,2]
[378055402,1754705440417,-1913.54183207,0.0002607,2]
[378055404,1754705440428,-2763.17517535,0.0002607,2]
[378055406,1754705440439,-1167.8559997,0.0002607,2]
[378055408,1754705440450,-51843.02521044,0.0002607,2]
[378055410,1754705440459,-150.0,0.00026071,2]
[378055412,1754705440468,-150.0,0.00026072,2]
[378055414,1754705440477,-3892.65958218,0.0002608,2]
[378055416,1754705440489,-254.3252706,0.0002608,2]
[378055420,1754705440515,-336.0581857,0.0002608,2]
[378055657,1754705443019,-4060.29616152,0.0002608,2]
[378055659,1754705443029,-2274.95074262,0.0002608,2]
[378055661,1754705443039,-1000.0,0.00026086,2]
[378055663,1754705443048,-150.0,0.00026105,2]
[378055665,1754705443058,-159.12772031,0.00026108,2]
[378055667,1754705443068,-150.0,0.0002612,2]
[378055669,1754705443077,-1000.0,0.00026124,2]
[378055671,1754705443087,-150.0,0.00026129,4]
[378055673,1754705443097,-150.0,0.00026133,2]
[378055675,1754705443106,-150.0,0.00026135,2]
[378055677,1754705443115,-300.0,0.0002614,10]
[378055679,1754705443125,-4048.84011276,0.0002614,2]
[378055681,1754705443134,-5220.43192283,0.0002614,2]
[378055683,1754705443143,-29682.4152863,0.00026141,3]
[378055685,1754705443152,-29682.4152863,0.00026141,3]
[378055687,1754705443162,-151.804301,0.00026141,7]
[378055689,1754705443171,-151.0,0.00026141,7]
[378055691,1754705443180,-151.0,0.00026141,7]
[378055693,1754705443190,-152.04359,0.00026141,7]
[378055705,1754705443342,-151.0,0.00026141,7]
[378055707,1754705443377,-151.0,0.00026141,7]
[378055709,1754705443387,-89047.2458588,0.00026141,3]
[378055711,1754705443396,-4541.57212822,0.00026142,3]
[378055713,1754705443405,-150.0,0.00026143,2]
[378055715,1754705443415,-322.8070908,0.00026148,10]
[378055717,1754705443424,-29682.4152863,0.00026149,3]
[378055719,1754705443433,-27249.4327693,0.00026149,3]
[378055721,1754705443442,-151.0,0.00026149,7]
[378055723,1754705443451,-151.0,0.00026149,7]
[378055725,1754705443461,-29682.4152863,0.00026149,3]
[378055727,1754705443470,-13624.7163847,0.00026149,3]
[378055729,1754705443479,-13624.7163847,0.00026149,3]
[378055731,1754705443488,-9083.14425644,0.0002615,3]
[378055732,1754705443497,-89047.2458588,0.00026151,3]
[378055733,1754705443506,-54509.81848454,0.00026151,3]
[378055734,1754705443535,-1000.0,0.00026031,2]
[378055735,1754705443544,-231.61663843,0.00026044,2]
[378055736,1754705443554,-9072.19131056,0.00026151,3]
[378055737,1754705443564,-151.0,0.00026151,7]
[378055738,1754705443573,-151.0,0.00026151,7]
[378055739,1754705443583,-151.0,0.00026151,7]
[378055740,1754705443592,-151.0,0.00026151,7]
[378055741,1754705443601,-153.153254,0.00026151,7]
[378055742,1754705443611,-175.954729,0.00026151,7]
[378055743,1754705443620,-157.094042,0.00026151,7]
[378055746,1754705443630,-157.594263,0.00026151,7]
[378055747,1754705443639,-151.0,0.00026151,7]
[378055749,1754705443648,-151.0,0.00026151,7]
[378055750,1754705443658,-151.0,0.00026151,7]
[378055751,1754705443667,-151.0,0.00026151,7]
[378055752,1754705443676,-151.0,0.00026151,7]
[378055753,1754705443686,-205.902478,0.00026151,7]
[378055754,1754705443694,-151.0,0.00026151,7]
[378055755,1754705443703,-186.360724,0.00026151,7]
[378055756,1754705443713,-151.0,0.00026151,7]
[378055757,1754705443722,-156.579522,0.00026151,7]
[378055758,1754705443731,-151.0,0.00026151,7]
[378055759,1754705443740,-151.0,0.00026151,7]
[378055760,1754705443750,-151.0,0.00026151,7]
[378055761,1754705443759,-151.0,0.00026151,7]
[378055762,1754705443769,-151.0,0.00026151,7]
[378055763,1754705443778,-151.0,0.00026151,7]
[378055764,1754705443787,-152.075924,0.00026151,7]
[378055765,1754705443797,-151.0,0.00026151,7]
[378055766,1754705443806,-71.98555276,0.00026151,7]
[378055769,1754705445894,-507.0,0.00023847,2]
[378055770,1754705445904,-79.01444724,0.00026151,7]
[378055771,1754705445914,-277.67991,0.00026151,7]
[378055772,1754705445927,-151.0,0.00026151,7]
[378055773,1754705445936,-151.0,0.00026151,7]
[378055774,1754705445945,-151.0,0.00026151,7]
[378055775,1754705445955,-151.0,0.00026151,7]
[378055776,1754705445964,-151.0,0.00026151,7]
[378055777,1754705445973,-266.744205,0.00026151,7]
[378055778,1754705445982,-266.744205,0.00026151,7]
[378055779,1754705445991,-266.744205,0.00026151,7]
[378055780,1754705446001,-266.744205,0.00026151,7]
[378055781,1754705446012,-151.0,0.00026151,7]
[378055782,1754705446022,-151.0,0.00026151,7]
[378055783,1754705446032,-151.0,0.00026151,7]
[378055784,1754705446041,-151.0,0.00026151,7]
[378055785,1754705446050,-151.0,0.00026151,7]
[378055786,1754705446059,-151.0,0.00026151,7]
[378055787,1754705446068,-156.191059,0.00026151,7]
[378055788,1754705446078,-156.798409,0.00026151,7]
[378055789,1754705446091,-500.0,0.00026151,2]
[378055790,1754705446102,-151.0,0.00026151,7]
[378055791,1754705446111,-172.485663,0.00026151,7]
[378055792,1754705446120,-151.0,0.00026151,7]
[378055793,1754705446129,-151.0,0.00026151,7]
[378055794,1754705446138,-281.442512,0.00026151,7]
[378055795,1754705446147,-151.991037,0.00026151,7]
[378055796,1754705446157,-151.0,0.00026151,7]
[378055797,1754705446166,-151.438753,0.00026151,7]
[378055798,1754705446175,-1990.82,0.00026151,2]
[378055799,1754705446184,-151.0,0.00026151,7]
[378055800,1754705446193,-151.0,0.00026151,7]
[378055801,1754705446203,-157.825523,0.00026151,7]
[378055802,1754705446212,-151.0,0.00026151,7]
[378055803,1754705446221,-151.0,0.00026151,7]
[378055804,1754705446230,-151.0,0.00026151,7]
[378055805,1754705446239,-237.933759,0.00026151,7]
[378055806,1754705446249,-151.0,0.00026151,7]
[378055807,1754705446258,-153.221454,0.00026151,7]
[378055808,1754705446277,-151.0,0.00026151,7]
[378055809,1754705446290,-151.555983,0.00026151,7]
[378055810,1754705446299,-152.258051,0.00026151,7]
[378055811,1754705446308,-151.0,0.00026151,7]
[378055812,1754705446317,-151.0,0.00026151,7]
[378055813,1754705446327,-151.0,0.00026151,7]
[378055814,1754705446336,-157.199402,0.00026151,7]
[378055815,1754705446345,-151.0,0.00026151,7]
[378055816,1754705446354,-151.0,0.00026151,7]
[378055817,1754705446363,-151.0,0.00026151,7]
[378055818,1754705446373,-154.965022,0.00026151,7]
[378055819,1754705446382,-151.0,0.00026151,7]
[378055820,1754705446391,-155.017135,0.00026151,7]
[378055821,1754705446400,-161.826799,0.00026151,7]
[378055822,1754705446411,-400.0,0.00026151,2]
[378055823,1754705446421,-151.0,0.00026151,7]
[378055824,1754705446430,-155.301744,0.00026151,7]
[378055825,1754705446439,-151.0,0.00026151,7]
[378055826,1754705446449,-151.0,0.00026151,7]
[378055827,1754705446457,-151.0,0.00026151,7]
[378055828,1754705446466,-151.0,0.00026151,7]
[378055829,1754705446475,-151.0,0.00026151,7]
[378055830,1754705446485,-151.0,0.00026151,7]
[378055831,1754705446494,-151.0,0.00026151,7]
[378055832,1754705446503,-188.09687,0.00026151,7]
[378055833,1754705446512,-456.03,0.00026151,2]
[378055834,1754705446523,-161.310387,0.00026151,7]
[378055835,1754705446532,-151.0,0.00026151,7]
[378055836,1754705446542,-151.0,0.00026151,7]
[378055837,1754705446552,-151.0,0.00026151,7]
[378055838,1754705446562,-151.0,0.00026151,7]
[378055839,1754705446571,-159.94935003,0.00026151,2]
[378055840,1754705446581,-154.06694675,0.00026151,2]
[378055841,1754705446590,-162.370739,0.00026151,7]
[378055842,1754705446600,-151.0,0.00026151,7]
[378055843,1754705446609,-151.0,0.00026151,7]
[378055844,1754705446619,-151.0,0.00026151,7]
[378055845,1754705446629,-151.0,0.00026151,7]
[378055846,1754705446638,-151.0,0.00026151,7]
[378055847,1754705446647,-151.0,0.00026151,7]
[378055848,1754705446656,-400.0,0.00026151,2]
[378055849,1754705446665,-252.929635,0.00026151,7]
[378055850,1754705446675,-277.27520379,0.00026151,2]
[378055851,1754705446684,-7806.30687333,0.00026151,3]
[378055852,1754705446697,-4796.2433977,0.00026151,3]
[378055853,1754705446708,-1494.75810912,0.00026151,3]
[378055854,1754705446719,-586.65622557,0.00026151,3]
[378055855,1754705446731,-4240.98174693,0.00026151,3]
[378055856,1754705446743,-830.77714864,0.00026151,3]
[378055857,1754705446766,-151.0,0.00026151,7]
[378055858,1754705446776,-258.28888369,0.00026151,3]
[378055859,1754705446787,-5590.456219,0.00026151,3]
[378055860,1754705446798,-396.51821993,0.00026151,3]
[378055861,1754705447407,-6679.45611113,0.00026151,3]
[378055862,1754705447419,-121901.2468974,0.00026151,3]
[378055874,1754706229931,150.63,0.00013699,2]
[378055877,1754706315154,1183.97537997,0.000121,30]
[378055881,1754706333304,179.11766991,0.0002,120]
[378055894,1754706577808,391.41,0.00016116,2]
[378055895,1754706578012,391.41,0.00017846,2]
[378055909,1754706632289,-1200.0,0.00018899,2]
[378055910,1754706632299,-300.0,0.00018899,2]
[378055911,1754706632308,-388.0,0.000189,2]
[378055912,1754706632343,-1468.4937012,0.000189,2]
[378055913,1754706632354,-725.95759578,0.000189,2]
[378055914,1754706632363,-185.20615931,0.000189,2]
[378055915,1754706632373,-256.00224491,0.000189,2]
[378056024,1754706638370,-3055.26880281,0.000189,2]
[378056026,1754706638382,-660.01334767,0.000189,2]